[Event "December 19 Early 2023"]
[Site "https://www.chess.com"]
[Date "2023.12.19"]
[Round "8"]
[White "Joel Paul Ganta"]
[Black "Czerw, Dawid"]
[Result "1-0"]
[Board "109"]
[TimeControl "180+1"]
[WhiteFideId "35066145"]
[BlackFideId "1145746"]
[WhiteElo "1891"]
[BlackElo "2144"]
[WhiteTeam "IND"]
[BlackTeam "POL"]
[WhiteClock "0:00:12"]
[BlackClock "0:00:28"]

1. d4 {[%clk 0:03:00]}  Nf6 {[%clk 0:02:58]} 2. c4 {[%clk 0:02:59]}  e6 {[%clk 0:02:57]} 3. f3 {[%clk 0:02:58]}  c5 {[%clk 0:02:55]} 4. d5 {[%clk 0:02:54]}  b5 {[%clk 0:02:53]} 5. e4 {[%clk 0:02:52]}  d6 {[%clk 0:02:53]} 6. Nc3 {[%clk 0:02:50]}  exd5 {[%clk 0:02:53]} 7. cxd5 {[%clk 0:02:47]}  b4 {[%clk 0:02:53]} 8. Nb1 {[%clk 0:02:39]}  g6 {[%clk 0:02:48]} 9. Bc4 {[%clk 0:02:38]}  Bg7 {[%clk 0:02:48]} 10. Ne2 {[%clk 0:02:38]}  O-O {[%clk 0:02:48]} 11. O-O {[%clk 0:02:38]}  Nbd7 {[%clk 0:02:48]} 12. Bg5 {[%clk 0:02:26]}  h6 {[%clk 0:02:48]} 13. Bh4 {[%clk 0:02:26]}  g5 {[%clk 0:02:48]} 14. Bf2 {[%clk 0:02:25]}  Nh5 {[%clk 0:02:47]} 15. Qc1 {[%clk 0:02:19]}  Ne5 {[%clk 0:02:43]} 16. Nd2 {[%clk 0:02:16]}  Nxc4 {[%clk 0:02:41]} 17. Nxc4 {[%clk 0:02:14]}  Ba6 {[%clk 0:02:42]} 18. Rb1 {[%clk 0:02:05]}  f5 {[%clk 0:02:26]} 19. exf5 {[%clk 0:01:48]}  Rxf5 {[%clk 0:02:25]} 20. Ng3 {[%clk 0:01:33]}  Nf4 {[%clk 0:02:18]} 21. Qc2 {[%clk 0:01:20]}  Rxd5 {[%clk 0:02:12]} 22. Rfd1 {[%clk 0:01:10]}  Rxd1+ {[%clk 0:02:03]} 23. Rxd1 {[%clk 0:01:11]}  d5 {[%clk 0:01:43]} 24. Ne3 {[%clk 0:01:11]}  c4 {[%clk 0:01:37]} 25. Nef5 {[%clk 0:00:40]}  Qf6 {[%clk 0:01:22]} 26. Bd4 {[%clk 0:00:34]}  Qe6 {[%clk 0:01:14]} 27. Nxg7 {[%clk 0:00:30]}  Qf7 {[%clk 0:01:02]} 28. N7f5 {[%clk 0:00:30]}  Qe6 {[%clk 0:01:00]} 29. Ng7 {[%clk 0:00:19]}  Qf7 {[%clk 0:00:57]} 30. N7f5 {[%clk 0:00:20]}  Qe6 {[%clk 0:00:57]} 31. Qd2 {[%clk 0:00:19]}  h5 {[%clk 0:00:55]} 32. Re1 {[%clk 0:00:19]}  Qd7 {[%clk 0:00:44]} 33. Re7 {[%clk 0:00:19]}  Qc6 {[%clk 0:00:40]} 34. Rg7+ {[%clk 0:00:18]}  Kf8 {[%clk 0:00:40]} 35. Rxg5 {[%clk 0:00:16]}  Ne6 {[%clk 0:00:40]} 36. Rg6 {[%clk 0:00:15]}  Re8 {[%clk 0:00:39]} 37. Rf6+ {[%clk 0:00:14]}  Kg8 {[%clk 0:00:38]} 38. Qh6 {[%clk 0:00:14]}  Nxd4 {[%clk 0:00:28]} 39. Qg7# {[%clk 0:00:12]} 1-0

[Event "December 19 Early 2023"]
[Site "https://www.chess.com"]
[Date "2023.12.19"]
[Round "8"]
[White "Martin, Lewis"]
[Black "Mazurkiewicz, Michal"]
[Result "0-1"]
[Board "110"]
[TimeControl "180+1"]
[WhiteFideId "410551"]
[BlackFideId "1124943"]
[WhiteElo "2145"]
[BlackElo "2103"]
[WhiteTeam "ENG"]
[BlackTeam "POL"]
[WhiteClock "0:00:00"]
[BlackClock "0:00:04"]

1. c4 {[%clk 0:03:00]}  Nf6 {[%clk 0:02:59]} 2. g3 {[%clk 0:03:00]}  g6 {[%clk 0:02:59]} 3. Bg2 {[%clk 0:03:00]}  Bg7 {[%clk 0:02:59]} 4. Nf3 {[%clk 0:03:01]}  O-O {[%clk 0:02:59]} 5. O-O {[%clk 0:03:01]}  d6 {[%clk 0:03:00]} 6. Nc3 {[%clk 0:02:59]}  c5 {[%clk 0:03:00]} 7. e4 {[%clk 0:02:59]}  Nc6 {[%clk 0:03:00]} 8. a3 {[%clk 0:02:54]}  Rb8 {[%clk 0:03:01]} 9. Rb1 {[%clk 0:02:53]}  b6 {[%clk 0:03:01]} 10. b4 {[%clk 0:02:52]}  e6 {[%clk 0:03:00]} 11. d3 {[%clk 0:02:46]}  Bb7 {[%clk 0:03:00]} 12. Be3 {[%clk 0:02:38]}  Ng4 {[%clk 0:02:53]} 13. Bd2 {[%clk 0:02:38]}  Nd4 {[%clk 0:02:33]} 14. Nxd4 {[%clk 0:02:31]}  cxd4 {[%clk 0:02:34]} 15. Nb5 {[%clk 0:02:27]}  Ne5 {[%clk 0:02:27]} 16. Bf4 {[%clk 0:02:17]}  g5 {[%clk 0:01:47]} 17. Bxe5 {[%clk 0:02:09]}  Bxe5 {[%clk 0:01:47]} 18. Nxa7 {[%clk 0:02:04]}  f5 {[%clk 0:01:33]} 19. exf5 {[%clk 0:01:45]}  Bxg2 {[%clk 0:01:28]} 20. Kxg2 {[%clk 0:01:44]}  Qd7 {[%clk 0:01:23]} 21. Nb5 {[%clk 0:01:42]}  Rxf5 {[%clk 0:01:23]} 22. Qg4 {[%clk 0:01:35]}  Qg7 {[%clk 0:00:37]} 23. Rbe1 {[%clk 0:01:18]}  Rbf8 {[%clk 0:00:36]} 24. Re4 {[%clk 0:01:02]}  Qf7 {[%clk 0:00:34]} 25. Qe2 {[%clk 0:00:47]}  Qg7 {[%clk 0:00:05]} 26. Qg4 {[%clk 0:00:18]}  Qf7 {[%clk 0:00:05]} 27. Qe2 {[%clk 0:00:12]}  Qg7 {[%clk 0:00:05]} 28. h3 {[%clk 0:00:13]}  d5 {[%clk 0:00:05]} 29. Rg4 {[%clk 0:00:11]}  h5 {[%clk 0:00:05]} 30. Rxd4 {[%clk 0:00:02]}  Bxd4 {[%clk 0:00:05]} 31. Qxe6+ {[%clk 0:00:00]}  Kh8 {[%clk 0:00:04]} 0-1

[Event "December 19 Early 2023"]
[Site "https://www.chess.com"]
[Date "2023.12.19"]
[Round "8"]
[White "Masague Artero, Guerau"]
[Black "Cansun, Can Alp"]
[Result "1-0"]
[Board "112"]
[TimeControl "180+1"]
[WhiteFideId "32098952"]
[BlackFideId "6390188"]
[WhiteElo "2253"]
[BlackElo "2031"]
[WhiteTeam "ESP"]
[BlackTeam "TUR"]
[WhiteClock "0:00:02"]
[BlackClock "0:00:02"]

1. Nf3 {[%clk 0:03:00]}  c5 {[%clk 0:02:59]} 2. e3 {[%clk 0:03:01]}  Nc6 {[%clk 0:02:59]} 3. d4 {[%clk 0:03:01]}  cxd4 {[%clk 0:02:59]} 4. exd4 {[%clk 0:03:02]}  d5 {[%clk 0:02:58]} 5. Bb5 {[%clk 0:03:02]}  Nf6 {[%clk 0:02:57]} 6. Ne5 {[%clk 0:02:50]}  Qa5+ {[%clk 0:02:46]} 7. Nc3 {[%clk 0:02:49]}  Bd7 {[%clk 0:02:40]} 8. Nxd7 {[%clk 0:02:46]}  Nxd7 {[%clk 0:02:33]} 9. O-O {[%clk 0:02:47]}  e6 {[%clk 0:02:30]} 10. Re1 {[%clk 0:02:47]}  Be7 {[%clk 0:02:19]} 11. Qg4 {[%clk 0:02:28]}  O-O {[%clk 0:02:01]} 12. Bh6 {[%clk 0:02:11]}  Bf6 {[%clk 0:02:01]} 13. Bxc6 {[%clk 0:02:11]}  bxc6 {[%clk 0:02:00]} 14. Re3 {[%clk 0:02:11]}  Kh8 {[%clk 0:01:58]} 15. Bg5 {[%clk 0:01:44]}  Qb4 {[%clk 0:01:46]} 16. Rd1 {[%clk 0:01:10]}  c5 {[%clk 0:01:32]} 17. Rg3 {[%clk 0:00:59]}  Rg8 {[%clk 0:01:18]} 18. Nxd5 {[%clk 0:00:47]}  Qxb2 {[%clk 0:00:31]} 19. Rh3 {[%clk 0:00:46]}  Qxc2 {[%clk 0:00:13]} 20. Ne3 {[%clk 0:00:14]}  Qg6 {[%clk 0:00:10]} 21. Bxf6 {[%clk 0:00:14]}  Nxf6 {[%clk 0:00:07]} 22. Qxg6 {[%clk 0:00:13]}  fxg6 {[%clk 0:00:07]} 23. dxc5 {[%clk 0:00:14]}  Rac8 {[%clk 0:00:05]} 24. Rc1 {[%clk 0:00:14]}  Rc6 {[%clk 0:00:05]} 25. Rh4 {[%clk 0:00:13]}  Rgc8 {[%clk 0:00:05]} 26. Rhc4 {[%clk 0:00:14]}  Nd7 {[%clk 0:00:05]} 27. Rd1 {[%clk 0:00:07]}  Nxc5 {[%clk 0:00:02]} 28. Rdc1 {[%clk 0:00:06]}  R6c7 {[%clk 0:00:01]} 29. Ng4 {[%clk 0:00:04]}  Na6 {[%clk 0:00:01]} 30. Rxc7 {[%clk 0:00:03]}  Rxc7 {[%clk 0:00:01]} 31. Rd1 {[%clk 0:00:03]}  Nc5 {[%clk 0:00:02]} 32. Rd8# {[%clk 0:00:02]} 1-0

[Event "December 19 Early 2023"]
[Site "https://www.chess.com"]
[Date "2023.12.19"]
[Round "8"]
[White "Antunez Soler, Luis"]
[Black "Burmakin, Evgeniy"]
[Result "0-1"]
[Board "113"]
[TimeControl "180+1"]
[WhiteFideId "3513335"]
[BlackFideId "4163729"]
[WhiteElo "2154"]
[BlackElo "2106"]
[WhiteTeam "CUB"]
[BlackTeam "RUS"]
[WhiteClock "0:02:01"]
[BlackClock "0:00:46"]

1. e4 {[%clk 0:03:00]}  c5 {[%clk 0:02:59]} 2. Nf3 {[%clk 0:02:59]}  d6 {[%clk 0:02:59]} 3. Bb5+ {[%clk 0:02:59]}  Nd7 {[%clk 0:02:58]} 4. d4 {[%clk 0:02:59]}  cxd4 {[%clk 0:02:58]} 5. Qxd4 {[%clk 0:02:59]}  a6 {[%clk 0:02:58]} 6. Bxd7+ {[%clk 0:02:58]}  Bxd7 {[%clk 0:02:59]} 7. Bg5 {[%clk 0:02:57]}  h6 {[%clk 0:02:37]} 8. Bh4 {[%clk 0:02:56]}  Qc7 {[%clk 0:02:30]} 9. Nc3 {[%clk 0:02:55]}  e6 {[%clk 0:02:20]} 10. O-O-O {[%clk 0:02:54]}  Rc8 {[%clk 0:02:14]} 11. Bg3 {[%clk 0:02:54]}  e5 {[%clk 0:01:48]} 12. Nxe5 {[%clk 0:02:53]}  dxe5 {[%clk 0:01:20]} 13. Bxe5 {[%clk 0:02:54]}  Qc6 {[%clk 0:01:16]} 14. Bxg7 {[%clk 0:02:54]}  Bxg7 {[%clk 0:01:09]} 15. Qxg7 {[%clk 0:02:53]}  Qf6 {[%clk 0:01:10]} 16. Qxf6 {[%clk 0:02:45]}  Nxf6 {[%clk 0:01:11]} 17. e5 {[%clk 0:02:46]}  Ng4 {[%clk 0:01:09]} 18. Ne4 {[%clk 0:02:46]}  Ke7 {[%clk 0:01:02]} 19. Rhe1 {[%clk 0:02:33]}  Bf5 {[%clk 0:00:50]} 20. f4 {[%clk 0:02:05]}  Bxe4 {[%clk 0:00:46]} 21. Rxe4 {[%clk 0:02:01]}  Nf2 {[%clk 0:00:46]} 0-1

[Event "December 19 Early 2023"]
[Site "https://www.chess.com"]
[Date "2023.12.19"]
[Round "8"]
[White "Fishchuk, Vladyslav"]
[Black "Kahlert, Thomas"]
[Result "1/2-1/2"]
[Board "116"]
[TimeControl "180+1"]
[WhiteFideId "34122117"]
[BlackFideId "4625242"]
[WhiteElo "2055"]
[BlackElo "2221"]
[WhiteTeam "UKR"]
[BlackTeam "GER"]
[WhiteClock "0:00:10"]
[BlackClock "0:00:31"]

1. Nc3 {[%clk 0:03:00]}  Nf6 {[%clk 0:02:58]} 2. e4 {[%clk 0:03:00]}  e5 {[%clk 0:02:58]} 3. Nf3 {[%clk 0:03:00]}  Nc6 {[%clk 0:02:57]} 4. Bb5 {[%clk 0:03:00]}  Bb4 {[%clk 0:02:55]} 5. O-O {[%clk 0:02:59]}  O-O {[%clk 0:02:54]} 6. Bxc6 {[%clk 0:02:58]}  dxc6 {[%clk 0:02:54]} 7. d3 {[%clk 0:02:58]}  Bd6 {[%clk 0:02:51]} 8. Ne2 {[%clk 0:02:58]}  Bg4 {[%clk 0:02:50]} 9. Ng3 {[%clk 0:02:56]}  Qd7 {[%clk 0:02:50]} 10. h3 {[%clk 0:02:47]}  Be6 {[%clk 0:02:47]} 11. Nh4 {[%clk 0:02:43]}  g6 {[%clk 0:02:43]} 12. f4 {[%clk 0:02:16]}  exf4 {[%clk 0:02:42]} 13. Bxf4 {[%clk 0:02:16]}  Bxf4 {[%clk 0:02:42]} 14. Rxf4 {[%clk 0:02:17]}  Ne8 {[%clk 0:02:41]} 15. Rf2 {[%clk 0:01:24]}  Qe7 {[%clk 0:02:32]} 16. Nf3 {[%clk 0:01:22]}  Ng7 {[%clk 0:02:31]} 17. Qd2 {[%clk 0:01:20]}  f5 {[%clk 0:02:29]} 18. Qh6 {[%clk 0:01:15]}  f4 {[%clk 0:02:16]} 19. Ng5 {[%clk 0:01:10]}  Ne8 {[%clk 0:02:07]} 20. Ne2 {[%clk 0:01:08]}  Qg7 {[%clk 0:01:57]} 21. Qxg7+ {[%clk 0:01:01]}  Nxg7 {[%clk 0:01:56]} 22. Nxf4 {[%clk 0:01:01]}  Bd7 {[%clk 0:01:56]} 23. Ne2 {[%clk 0:00:48]}  Rxf2 {[%clk 0:01:56]} 24. Kxf2 {[%clk 0:00:49]}  Rf8+ {[%clk 0:01:55]} 25. Ke3 {[%clk 0:00:43]}  h6 {[%clk 0:01:50]} 26. Nf3 {[%clk 0:00:43]}  Ne6 {[%clk 0:01:49]} 27. Ned4 {[%clk 0:00:40]}  Nf4 {[%clk 0:01:48]} 28. Rg1 {[%clk 0:00:29]}  c5 {[%clk 0:01:47]} 29. Ne2 {[%clk 0:00:29]}  Ne6 {[%clk 0:01:43]} 30. Ng3 {[%clk 0:00:25]}  Kg7 {[%clk 0:01:43]} 31. Ne5 {[%clk 0:00:25]}  Bc8 {[%clk 0:01:42]} 32. Rf1 {[%clk 0:00:25]}  Rxf1 {[%clk 0:01:41]} 33. Nxf1 {[%clk 0:00:25]}  h5 {[%clk 0:01:36]} 34. Nf3 {[%clk 0:00:25]}  Kf6 {[%clk 0:01:35]} 35. c3 {[%clk 0:00:24]}  b6 {[%clk 0:01:31]} 36. e5+ {[%clk 0:00:23]}  Kf7 {[%clk 0:01:27]} 37. Ng3 {[%clk 0:00:22]}  Bb7 {[%clk 0:01:26]} 38. Ne4 {[%clk 0:00:22]}  Ke7 {[%clk 0:01:20]} 39. d4 {[%clk 0:00:20]}  cxd4+ {[%clk 0:01:19]} 40. Nxd4 {[%clk 0:00:19]}  Bd5 {[%clk 0:01:12]} 41. a3 {[%clk 0:00:17]}  a5 {[%clk 0:01:11]} 42. h4 {[%clk 0:00:17]}  Ng7 {[%clk 0:01:07]} 43. g3 {[%clk 0:00:16]}  Ne6 {[%clk 0:00:56]} 44. Nxe6 {[%clk 0:00:15]}  Kxe6 {[%clk 0:00:55]} 45. Kf4 {[%clk 0:00:14]}  Bc6 {[%clk 0:00:53]} 46. Ng5+ {[%clk 0:00:13]}  Kd5 {[%clk 0:00:50]} 47. e6 {[%clk 0:00:12]}  Kd6 {[%clk 0:00:47]} 48. Nf7+ {[%clk 0:00:07]}  Ke7 {[%clk 0:00:45]} 49. Kg5 {[%clk 0:00:07]}  Be4 {[%clk 0:00:40]} 50. Ne5 {[%clk 0:00:06]}  Kxe6 {[%clk 0:00:39]} 51. Nxg6 {[%clk 0:00:06]}  Kd5 {[%clk 0:00:38]} 52. Nf4+ {[%clk 0:00:07]}  Kc4 {[%clk 0:00:38]} 53. Nxh5 {[%clk 0:00:08]}  Kb3 {[%clk 0:00:38]} 54. Nf6 {[%clk 0:00:09]}  Bc2 {[%clk 0:00:33]} 55. h5 {[%clk 0:00:09]}  Kxb2 {[%clk 0:00:34]} 56. h6 {[%clk 0:00:09]}  Kxa3 {[%clk 0:00:34]} 57. Kh5 {[%clk 0:00:09]}  b5 {[%clk 0:00:33]} 58. g4 {[%clk 0:00:10]}  b4 {[%clk 0:00:33]} 59. cxb4 {[%clk 0:00:10]}  axb4 {[%clk 0:00:33]} 60. g5 {[%clk 0:00:10]}  b3 {[%clk 0:00:33]} 61. g6 {[%clk 0:00:11]}  Bxg6+ {[%clk 0:00:31]} 62. Kxg6 {[%clk 0:00:11]}  b2 {[%clk 0:00:32]} 63. h7 {[%clk 0:00:11]}  b1=Q+ {[%clk 0:00:32]} 64. Kg7 {[%clk 0:00:10]}  Qxh7+ {[%clk 0:00:31]} 65. Nxh7 {[%clk 0:00:10]}  c5 {[%clk 0:00:31]} 66. Nf6 {[%clk 0:00:10]}  c4 {[%clk 0:00:32]} 67. Ne4 {[%clk 0:00:11]}  Kb3 {[%clk 0:00:31]} 68. Kf6 {[%clk 0:00:10]}  c3 {[%clk 0:00:31]} 69. Nxc3 {[%clk 0:00:10]} 1/2-1/2

[Event "December 19 Early 2023"]
[Site "https://www.chess.com"]
[Date "2023.12.19"]
[Round "8"]
[White "Figorito, Nick"]
[Black "Stankovic, Boris"]
[Result "1-0"]
[Board "117"]
[TimeControl "180+1"]
[WhiteFideId "30923689"]
[BlackFideId "985317"]
[WhiteElo "2411"]
[BlackElo "2265"]
[WhiteTeam "USA"]
[BlackTeam "SRB"]
[WhiteClock "0:00:19"]
[BlackClock "0:00:00"]

1. Nf3 {[%clk 0:03:00]}  Nf6 {[%clk 0:00:34]} 2. g3 {[%clk 0:02:58]}  g6 {[%clk 0:00:35]} 3. Bg2 {[%clk 0:02:58]}  Bg7 {[%clk 0:00:36]} 4. O-O {[%clk 0:02:59]}  O-O {[%clk 0:00:37]} 5. c4 {[%clk 0:02:58]}  c6 {[%clk 0:00:37]} 6. Nc3 {[%clk 0:02:57]}  d5 {[%clk 0:00:38]} 7. cxd5 {[%clk 0:02:58]}  cxd5 {[%clk 0:00:38]} 8. d4 {[%clk 0:02:59]}  Nc6 {[%clk 0:00:39]} 9. Ne5 {[%clk 0:02:59]}  Bf5 {[%clk 0:00:37]} 10. Nxc6 {[%clk 0:02:58]}  bxc6 {[%clk 0:00:37]} 11. Bf4 {[%clk 0:02:59]}  Ne4 {[%clk 0:00:36]} 12. Nxe4 {[%clk 0:02:58]}  Bxe4 {[%clk 0:00:36]} 13. b3 {[%clk 0:02:28]}  Bxg2 {[%clk 0:00:35]} 14. Kxg2 {[%clk 0:02:28]}  c5 {[%clk 0:00:33]} 15. dxc5 {[%clk 0:02:27]}  e5 {[%clk 0:00:33]} 16. Bd2 {[%clk 0:02:21]}  d4 {[%clk 0:00:33]} 17. Rc1 {[%clk 0:02:16]}  Rc8 {[%clk 0:00:29]} 18. Kg1 {[%clk 0:02:09]}  f5 {[%clk 0:00:28]} 19. b4 {[%clk 0:01:56]}  f4 {[%clk 0:00:25]} 20. b5 {[%clk 0:01:52]}  Qd7 {[%clk 0:00:25]} 21. c6 {[%clk 0:01:44]}  Qh3 {[%clk 0:00:25]} 22. Qb3+ {[%clk 0:01:24]}  Kh8 {[%clk 0:00:23]} 23. gxf4 {[%clk 0:01:19]}  Qh5 {[%clk 0:00:18]} 24. Qf3 {[%clk 0:01:11]}  Qf5 {[%clk 0:00:13]} 25. fxe5 {[%clk 0:00:58]}  Qxe5 {[%clk 0:00:14]} 26. Qg4 {[%clk 0:00:49]}  Qxb5 {[%clk 0:00:13]} 27. c7 {[%clk 0:00:41]}  Qb6 {[%clk 0:00:07]} 28. Bf4 {[%clk 0:00:40]}  Qb7 {[%clk 0:00:03]} 29. Bg3 {[%clk 0:00:39]}  Rf5 {[%clk 0:00:02]} 30. Rfd1 {[%clk 0:00:34]}  Be5 {[%clk 0:00:02]} 31. Bxe5+ {[%clk 0:00:25]}  Rxe5 {[%clk 0:00:03]} 32. Qxd4 {[%clk 0:00:26]}  Qb5 {[%clk 0:00:00]} 33. f4 {[%clk 0:00:19]} 1-0

[Event "December 19 Early 2023"]
[Site "https://www.chess.com"]
[Date "2023.12.19"]
[Round "8"]
[White "Delorme, Axel"]
[Black "Shuvalov, Evgenij"]
[Result "0-1"]
[Board "118"]
[TimeControl "180+1"]
[WhiteFideId "632023"]
[BlackFideId "4187237"]
[WhiteElo "2478"]
[BlackElo "2084"]
[WhiteTeam "FRA"]
[BlackTeam "FID"]
[WhiteClock "0:00:00"]
[BlackClock "0:01:14"]

1. e4 {[%clk 0:03:00]}  e6 {[%clk 0:02:59]} 2. d4 {[%clk 0:03:00]}  d5 {[%clk 0:02:59]} 3. Nc3 {[%clk 0:03:00]}  Bb4 {[%clk 0:02:59]} 4. e5 {[%clk 0:03:01]}  c5 {[%clk 0:02:59]} 5. a3 {[%clk 0:03:02]}  Bxc3+ {[%clk 0:03:00]} 6. bxc3 {[%clk 0:03:02]}  Ne7 {[%clk 0:03:00]} 7. Qg4 {[%clk 0:03:02]}  Qc7 {[%clk 0:03:01]} 8. Qxg7 {[%clk 0:03:02]}  Rg8 {[%clk 0:03:01]} 9. Qxh7 {[%clk 0:03:02]}  cxd4 {[%clk 0:03:02]} 10. Ne2 {[%clk 0:03:02]}  Nbc6 {[%clk 0:03:02]} 11. f4 {[%clk 0:03:03]}  Bd7 {[%clk 0:03:01]} 12. h4 {[%clk 0:03:03]}  dxc3 {[%clk 0:03:00]} 13. h5 {[%clk 0:03:04]}  O-O-O {[%clk 0:02:59]} 14. Qd3 {[%clk 0:03:03]}  d4 {[%clk 0:02:59]} 15. h6 {[%clk 0:03:04]}  Kb8 {[%clk 0:02:57]} 16. h7 {[%clk 0:03:03]}  Rh8 {[%clk 0:02:57]} 17. Rb1 {[%clk 0:02:56]}  Bc8 {[%clk 0:02:57]} 18. a4 {[%clk 0:02:56]}  Nd5 {[%clk 0:02:53]} 19. Ba3 {[%clk 0:02:53]}  Nxf4 {[%clk 0:02:29]} 20. Nxf4 {[%clk 0:02:48]}  Nxe5 {[%clk 0:02:29]} 21. Qg3 {[%clk 0:01:54]}  f5 {[%clk 0:02:18]} 22. Ng6 {[%clk 0:01:20]}  Nxg6 {[%clk 0:02:10]} 23. Qxg6 {[%clk 0:01:21]}  Qe5+ {[%clk 0:02:07]} 24. Be2 {[%clk 0:01:07]}  d3 {[%clk 0:02:02]} 25. cxd3 {[%clk 0:01:02]}  c2 {[%clk 0:02:02]} 26. Rc1 {[%clk 0:00:56]}  Qc3+ {[%clk 0:02:02]} 27. Kf2 {[%clk 0:00:44]}  Qxa3 {[%clk 0:02:01]} 28. Rxc2 {[%clk 0:00:45]}  Qxa4 {[%clk 0:01:59]} 29. Rc4 {[%clk 0:00:37]}  Qd7 {[%clk 0:01:51]} 30. g4 {[%clk 0:00:25]}  fxg4 {[%clk 0:01:42]} 31. Bxg4 {[%clk 0:00:14]}  Rdf8+ {[%clk 0:01:37]} 32. Ke2 {[%clk 0:00:08]}  Qd5 {[%clk 0:01:29]} 33. Rxc8+ {[%clk 0:00:02]}  Rxc8 {[%clk 0:01:26]} 34. Qe4 {[%clk 0:00:00]}  Qg5 {[%clk 0:01:14]} 0-1

[Event "December 19 Early 2023"]
[Site "https://www.chess.com"]
[Date "2023.12.19"]
[Round "8"]
[White "Rangel, Daniel"]
[Black "Matveeva, Olga"]
[Result "1-0"]
[Board "119"]
[TimeControl "180+1"]
[WhiteFideId "2124475"]
[BlackFideId "24107018"]
[WhiteElo "2267"]
[BlackElo "1883"]
[WhiteTeam "BRA"]
[BlackTeam "RUS"]
[WhiteClock "0:01:46"]
[BlackClock "0:00:10"]

1. d4 {[%clk 0:03:00]}  d5 {[%clk 0:02:59]} 2. Nf3 {[%clk 0:03:01]}  Nf6 {[%clk 0:02:58]} 3. e3 {[%clk 0:03:02]}  c5 {[%clk 0:02:59]} 4. b3 {[%clk 0:03:00]}  cxd4 {[%clk 0:02:53]} 5. exd4 {[%clk 0:03:00]}  Bg4 {[%clk 0:02:51]} 6. Bd3 {[%clk 0:02:58]}  Nc6 {[%clk 0:02:50]} 7. Bb2 {[%clk 0:02:56]}  e6 {[%clk 0:02:48]} 8. Nbd2 {[%clk 0:02:56]}  Bd6 {[%clk 0:02:44]} 9. a3 {[%clk 0:02:50]}  O-O {[%clk 0:02:43]} 10. O-O {[%clk 0:02:49]}  Rc8 {[%clk 0:02:43]} 11. Qe1 {[%clk 0:02:44]}  Bxf3 {[%clk 0:02:40]} 12. Nxf3 {[%clk 0:02:43]}  Nd7 {[%clk 0:02:37]} 13. Qe3 {[%clk 0:02:32]}  Re8 {[%clk 0:02:26]} 14. Rae1 {[%clk 0:02:21]}  h6 {[%clk 0:02:15]} 15. c4 {[%clk 0:02:07]}  dxc4 {[%clk 0:01:36]} 16. bxc4 {[%clk 0:02:08]}  Nf6 {[%clk 0:01:35]} 17. Bb1 {[%clk 0:02:03]}  Qc7 {[%clk 0:01:31]} 18. Qd3 {[%clk 0:01:51]}  Na5 {[%clk 0:00:45]} 19. c5 {[%clk 0:01:50]}  Be7 {[%clk 0:00:19]} 20. d5 {[%clk 0:01:48]}  exd5 {[%clk 0:00:14]} 21. Bxf6 {[%clk 0:01:46]}  Bxf6 {[%clk 0:00:10]} 22. Qh7+ {[%clk 0:01:46]} 1-0

[Event "December 19 Early 2023"]
[Site "https://www.chess.com"]
[Date "2023.12.19"]
[Round "8"]
[White "Tabuenca Mendataurigoitia, Daniel"]
[Black "Bach Ngoc Thuy Duong"]
[Result "1-0"]
[Board "122"]
[TimeControl "180+1"]
[WhiteFideId "24563617"]
[BlackFideId "12408956"]
[WhiteElo "2130"]
[BlackElo "1970"]
[WhiteTeam "ESP"]
[BlackTeam "VIE"]
[WhiteClock "0:00:05"]
[BlackClock "0:00:00"]

1. Nf3 {[%clk 0:03:00]}  d5 {[%clk 0:02:59]} 2. g3 {[%clk 0:02:58]}  Nf6 {[%clk 0:02:57]} 3. Bg2 {[%clk 0:02:58]}  c6 {[%clk 0:02:54]} 4. O-O {[%clk 0:02:58]}  Bf5 {[%clk 0:02:53]} 5. d3 {[%clk 0:02:57]}  Nbd7 {[%clk 0:02:53]} 6. c4 {[%clk 0:02:57]}  e6 {[%clk 0:02:53]} 7. Nc3 {[%clk 0:02:57]}  Be7 {[%clk 0:02:53]} 8. Be3 {[%clk 0:02:57]}  O-O {[%clk 0:02:52]} 9. Qb3 {[%clk 0:02:57]}  dxc4 {[%clk 0:01:48]} 10. dxc4 {[%clk 0:02:55]}  Qc8 {[%clk 0:01:46]} 11. Rad1 {[%clk 0:02:49]}  h6 {[%clk 0:01:45]} 12. Rd2 {[%clk 0:02:44]}  Bc5 {[%clk 0:01:45]} 13. Bxc5 {[%clk 0:02:40]}  Nxc5 {[%clk 0:01:45]} 14. Qa3 {[%clk 0:02:41]}  Nce4 {[%clk 0:01:31]} 15. Nxe4 {[%clk 0:02:41]}  Nxe4 {[%clk 0:01:32]} 16. Rdd1 {[%clk 0:02:41]}  Rd8 {[%clk 0:01:31]} 17. Ne5 {[%clk 0:02:37]}  Qc7 {[%clk 0:01:25]} 18. Bxe4 {[%clk 0:02:24]}  Bxe4 {[%clk 0:01:26]} 19. f4 {[%clk 0:02:21]}  f6 {[%clk 0:01:11]} 20. Nf3 {[%clk 0:02:17]}  Qb6+ {[%clk 0:00:59]} 21. c5 {[%clk 0:02:16]}  Qb5 {[%clk 0:00:59]} 22. Kf2 {[%clk 0:02:15]}  b6 {[%clk 0:00:45]} 23. cxb6 {[%clk 0:01:52]}  Qxb6+ {[%clk 0:00:45]} 24. Qe3 {[%clk 0:01:50]}  Bd5 {[%clk 0:00:39]} 25. b3 {[%clk 0:01:46]}  c5 {[%clk 0:00:37]} 26. Rc1 {[%clk 0:01:41]}  Rdc8 {[%clk 0:00:37]} 27. Rc2 {[%clk 0:01:26]}  c4 {[%clk 0:00:36]} 28. Rfc1 {[%clk 0:01:25]}  Qa6 {[%clk 0:00:34]} 29. bxc4 {[%clk 0:01:20]}  Rxc4 {[%clk 0:00:33]} 30. Rxc4 {[%clk 0:01:16]}  Bxc4 {[%clk 0:00:34]} 31. a3 {[%clk 0:01:15]}  Rb8 {[%clk 0:00:34]} 32. Nd4 {[%clk 0:01:01]}  Bd5 {[%clk 0:00:26]} 33. Qd3 {[%clk 0:00:59]}  Qxd3 {[%clk 0:00:24]} 34. exd3 {[%clk 0:01:00]}  Rb2+ {[%clk 0:00:23]} 35. Rc2 {[%clk 0:01:00]}  Rb1 {[%clk 0:00:23]} 36. a4 {[%clk 0:00:55]}  Ra1 {[%clk 0:00:23]} 37. f5 {[%clk 0:00:43]}  exf5 {[%clk 0:00:16]} 38. Nxf5 {[%clk 0:00:41]}  Be6 {[%clk 0:00:16]} 39. Nd4 {[%clk 0:00:33]}  Bf7 {[%clk 0:00:14]} 40. Rc8+ {[%clk 0:00:31]}  Kh7 {[%clk 0:00:14]} 41. Rc7 {[%clk 0:00:32]}  Bd5 {[%clk 0:00:13]} 42. Rxa7 {[%clk 0:00:27]}  Ra2+ {[%clk 0:00:13]} 43. Ke3 {[%clk 0:00:27]}  Kg6 {[%clk 0:00:10]} 44. g4 {[%clk 0:00:20]}  Rxh2 {[%clk 0:00:09]} 45. Nf5 {[%clk 0:00:20]}  Rh3+ {[%clk 0:00:08]} 46. Kd4 {[%clk 0:00:14]}  Bf7 {[%clk 0:00:07]} 47. a5 {[%clk 0:00:13]}  Rh2 {[%clk 0:00:05]} 48. a6 {[%clk 0:00:12]}  Ra2 {[%clk 0:00:05]} 49. Nh4+ {[%clk 0:00:10]}  Kg5 {[%clk 0:00:05]} 50. Rxf7 {[%clk 0:00:09]}  Kxh4 {[%clk 0:00:05]} 51. a7 {[%clk 0:00:10]}  Kxg4 {[%clk 0:00:05]} 52. Rxg7+ {[%clk 0:00:11]}  Kf5 {[%clk 0:00:04]} 53. Kd5 {[%clk 0:00:10]}  h5 {[%clk 0:00:04]} 54. d4 {[%clk 0:00:09]}  h4 {[%clk 0:00:02]} 55. Kc6 {[%clk 0:00:10]}  h3 {[%clk 0:00:02]} 56. Kb7 {[%clk 0:00:09]}  h2 {[%clk 0:00:03]} 57. Rh7 {[%clk 0:00:08]}  Kg4 {[%clk 0:00:01]} 58. Rxh2 {[%clk 0:00:07]}  Rxh2 {[%clk 0:00:01]} 59. a8=Q {[%clk 0:00:06]}  Rb2+ {[%clk 0:00:02]} 60. Kc6 {[%clk 0:00:06]}  f5 {[%clk 0:00:02]} 61. d5 {[%clk 0:00:05]}  f4 {[%clk 0:00:02]} 62. Qg8+ {[%clk 0:00:05]}  Kf3 {[%clk 0:00:02]} 63. d6 {[%clk 0:00:05]}  Kf2 {[%clk 0:00:00]} 64. d7 {[%clk 0:00:05]} 1-0